[Event "Titled Tuesday Blitz December 20 Late 2022"]
[White "D`Arruda, Ricardo D."]
[Black "gshwbedhkhd"]
[WhiteFideId "100692"]
[WhiteElo "2445"]
[BlackElo "2570"]
[Result "0-1"]
[Round "08"]
[TimeControl "180+1"]
[Date "2022.12.21"]
[WhiteClock "0:00:04"]
[BlackClock "0:00:13"]

1. d4 {[%clk 0:02:50]}  f5 {[%clk 0:02:58]} 2. Bg5 {[%clk 0:02:46]}  h6 {[%clk 0:02:58]} 3. Bc1 {[%clk 0:02:39]}  Nf6 {[%clk 0:02:55]} 4. Nc3 {[%clk 0:02:39]}  d5 {[%clk 0:02:46]} 5. Nf3 {[%clk 0:02:37]}  e6 {[%clk 0:02:44]} 6. Ne5 {[%clk 0:02:36]}  Bd6 {[%clk 0:02:40]} 7. Ng6 {[%clk 0:02:34]}  Rg8 {[%clk 0:02:40]} 8. f3 {[%clk 0:02:31]}  Kf7 {[%clk 0:02:37]} 9. Ne5+ {[%clk 0:02:30]}  Bxe5 {[%clk 0:02:37]} 10. dxe5 {[%clk 0:02:30]}  Nfd7 {[%clk 0:02:37]} 11. f4 {[%clk 0:02:27]}  a6 {[%clk 0:02:29]} 12. g3 {[%clk 0:02:26]}  c5 {[%clk 0:02:28]} 13. Bg2 {[%clk 0:02:16]}  Nc6 {[%clk 0:02:25]} 14. O-O {[%clk 0:02:06]}  Re8 {[%clk 0:02:10]} 15. e3 {[%clk 0:01:53]}  Ne7 {[%clk 0:01:58]} 16. Qh5+ {[%clk 0:01:47]}  Kg8 {[%clk 0:01:57]} 17. g4 {[%clk 0:01:46]}  Nf8 {[%clk 0:01:52]} 18. gxf5 {[%clk 0:01:42]}  Nxf5 {[%clk 0:01:51]} 19. e4 {[%clk 0:01:39]}  dxe4 {[%clk 0:01:51]} 20. Nxe4 {[%clk 0:01:39]}  Bd7 {[%clk 0:01:37]} 21. Bd2 {[%clk 0:01:36]}  Bc6 {[%clk 0:01:34]} 22. Qe2 {[%clk 0:01:27]}  Nh4 {[%clk 0:01:28]} 23. Bh1 {[%clk 0:01:23]}  Bb5 {[%clk 0:01:20]} 24. Qg4 {[%clk 0:00:45]}  Bxf1 {[%clk 0:01:04]} 25. Rxf1 {[%clk 0:00:45]}  Nh7 {[%clk 0:00:56]} 26. Be3 {[%clk 0:00:40]}  b6 {[%clk 0:00:50]} 27. Nd6 {[%clk 0:00:39]}  Nf5 {[%clk 0:00:38]} 28. Nxe8 {[%clk 0:00:35]}  Qxe8 {[%clk 0:00:33]} 29. Bf2 {[%clk 0:00:34]}  Rd8 {[%clk 0:00:32]} 30. Be4 {[%clk 0:00:35]}  Nd4 {[%clk 0:00:23]} 31. Kh1 {[%clk 0:00:32]}  Nf8 {[%clk 0:00:20]} 32. Rg1 {[%clk 0:00:32]}  Qf7 {[%clk 0:00:20]} 33. Rd1 {[%clk 0:00:28]}  Rd7 {[%clk 0:00:16]} 34. c3 {[%clk 0:00:21]}  Nf5 {[%clk 0:00:16]} 35. Rxd7 {[%clk 0:00:21]}  Qxd7 {[%clk 0:00:16]} 36. Qe2 {[%clk 0:00:20]}  Ng6 {[%clk 0:00:14]} 37. Bxf5 {[%clk 0:00:18]}  exf5 {[%clk 0:00:14]} 38. Qxa6 {[%clk 0:00:09]}  Qd5+ {[%clk 0:00:13]} 39. Kg1 {[%clk 0:00:09]}  Nxf4 {[%clk 0:00:14]} 40. Qf1 {[%clk 0:00:07]}  Qf3 {[%clk 0:00:13]} 41. Bg3 {[%clk 0:00:05]}  Ne2+ {[%clk 0:00:12]} 42. Qxe2 {[%clk 0:00:04]}  Qxe2 {[%clk 0:00:13]} 0-1


[Site "https://www.chess.com"]

[Event "Titled Tuesday Blitz December 20 Late 2022"]
[White "Eljanov, Pavel"]
[Black "Keymer, Vincent"]
[WhiteFideId "14102951"]
[BlackFideId "12940690"]
[WhiteElo "2598"]
[BlackElo "2600"]
[Result "1/2-1/2"]
[Round "08"]
[TimeControl "180+1"]
[Date "2022.12.20"]
[WhiteClock "0:00:04"]
[BlackClock "0:00:05"]

1. e4 {[%clk 0:03:00]}  c6 {[%clk 0:02:59]} 2. d4 {[%clk 0:03:00]}  d5 {[%clk 0:03:00]} 3. exd5 {[%clk 0:02:59]}  cxd5 {[%clk 0:03:01]} 4. Bd3 {[%clk 0:02:59]}  Nf6 {[%clk 0:03:02]} 5. c3 {[%clk 0:02:59]}  Bg4 {[%clk 0:03:02]} 6. Nf3 {[%clk 0:02:55]}  Nc6 {[%clk 0:03:00]} 7. O-O {[%clk 0:02:54]}  e6 {[%clk 0:03:00]} 8. Re1 {[%clk 0:02:49]}  Bd6 {[%clk 0:02:58]} 9. Bg5 {[%clk 0:02:48]}  h6 {[%clk 0:02:34]} 10. Bh4 {[%clk 0:02:47]}  O-O {[%clk 0:02:00]} 11. Nbd2 {[%clk 0:02:46]}  Be7 {[%clk 0:01:51]} 12. Qb3 {[%clk 0:02:27]}  a6 {[%clk 0:01:14]} 13. Bxf6 {[%clk 0:01:53]}  gxf6 {[%clk 0:01:04]} 14. h3 {[%clk 0:01:44]}  Bxf3 {[%clk 0:01:03]} 15. Nxf3 {[%clk 0:01:45]}  Qc7 {[%clk 0:00:54]} 16. a4 {[%clk 0:01:25]}  Kh8 {[%clk 0:00:41]} 17. Qc2 {[%clk 0:01:11]}  Qf4 {[%clk 0:00:39]} 18. Qd2 {[%clk 0:01:00]}  Qxd2 {[%clk 0:00:36]} 19. Nxd2 {[%clk 0:01:01]}  Rac8 {[%clk 0:00:32]} 20. g4 {[%clk 0:00:56]}  Bd6 {[%clk 0:00:30]} 21. a5 {[%clk 0:00:54]}  h5 {[%clk 0:00:26]} 22. Kf1 {[%clk 0:00:43]}  hxg4 {[%clk 0:00:20]} 23. hxg4 {[%clk 0:00:43]}  Rg8 {[%clk 0:00:20]} 24. f3 {[%clk 0:00:36]}  Kg7 {[%clk 0:00:20]} 25. Ke2 {[%clk 0:00:36]}  Rh8 {[%clk 0:00:21]} 26. Rf1 {[%clk 0:00:26]}  Rh2+ {[%clk 0:00:20]} 27. Rf2 {[%clk 0:00:26]}  Rch8 {[%clk 0:00:20]} 28. Nf1 {[%clk 0:00:24]}  Rh1 {[%clk 0:00:19]} 29. b4 {[%clk 0:00:23]}  Bf4 {[%clk 0:00:17]} 30. Rd1 {[%clk 0:00:20]}  e5 {[%clk 0:00:13]} 31. Ne3 {[%clk 0:00:12]}  Bxe3 {[%clk 0:00:10]} 32. Rxh1 {[%clk 0:00:12]}  Rxh1 {[%clk 0:00:09]} 33. Kxe3 {[%clk 0:00:12]}  exd4+ {[%clk 0:00:09]} 34. cxd4 {[%clk 0:00:13]}  Nxb4 {[%clk 0:00:10]} 35. Bf5 {[%clk 0:00:13]}  Nc6 {[%clk 0:00:09]} 36. Ra2 {[%clk 0:00:12]}  Re1+ {[%clk 0:00:08]} 37. Kf2 {[%clk 0:00:12]}  Rc1 {[%clk 0:00:08]} 38. Bc8 {[%clk 0:00:07]}  Nb4 {[%clk 0:00:05]} 39. Ra4 {[%clk 0:00:05]}  Nd3+ {[%clk 0:00:05]} 40. Ke3 {[%clk 0:00:05]}  Nb2 {[%clk 0:00:04]} 41. Rb4 {[%clk 0:00:04]}  Nc4+ {[%clk 0:00:04]} 42. Kf2 {[%clk 0:00:04]}  Rc2+ {[%clk 0:00:04]} 43. Kg3 {[%clk 0:00:04]}  Nxa5 {[%clk 0:00:04]} 44. Bxb7 {[%clk 0:00:04]}  Nxb7 {[%clk 0:00:02]} 45. Rxb7 {[%clk 0:00:05]}  Rc4 {[%clk 0:00:02]} 46. Ra7 {[%clk 0:00:05]}  Rxd4 {[%clk 0:00:02]} 47. Rxa6 {[%clk 0:00:05]}  Kg6 {[%clk 0:00:02]} 48. Rd6 {[%clk 0:00:05]}  Rd2 {[%clk 0:00:02]} 49. Kf4 {[%clk 0:00:05]}  Rd3 {[%clk 0:00:03]} 50. g5 {[%clk 0:00:04]}  Kg7 {[%clk 0:00:02]} 51. Rxf6 {[%clk 0:00:04]}  d4 {[%clk 0:00:02]} 52. Rd6 {[%clk 0:00:03]}  Rd1 {[%clk 0:00:02]} 53. Kg4 {[%clk 0:00:04]}  d3 {[%clk 0:00:02]} 54. f4 {[%clk 0:00:04]}  d2 {[%clk 0:00:03]} 55. Kf5 {[%clk 0:00:04]}  Rc1 {[%clk 0:00:02]} 56. Rxd2 {[%clk 0:00:04]}  Rc5+ {[%clk 0:00:03]} 57. Kg4 {[%clk 0:00:04]}  Ra5 {[%clk 0:00:03]} 58. Re2 {[%clk 0:00:04]}  Ra4 {[%clk 0:00:04]} 59. Re5 {[%clk 0:00:04]}  Rb4 {[%clk 0:00:04]} 60. Kf5 {[%clk 0:00:05]}  Ra4 {[%clk 0:00:04]} 61. Rd5 {[%clk 0:00:05]}  Rb4 {[%clk 0:00:05]} 62. Ke5 {[%clk 0:00:05]}  Rb1 {[%clk 0:00:05]} 63. Rd4 {[%clk 0:00:04]}  Rb5+ {[%clk 0:00:04]} 64. Ke4 {[%clk 0:00:03]}  Kg6 {[%clk 0:00:05]} 65. Rd6+ {[%clk 0:00:03]}  Kg7 {[%clk 0:00:05]} 66. f5 {[%clk 0:00:02]}  Rb4+ {[%clk 0:00:06]} 67. Kf3 {[%clk 0:00:03]}  Ra4 {[%clk 0:00:06]} 68. Rd7 {[%clk 0:00:02]}  Kg8 {[%clk 0:00:04]} 69. Kg3 {[%clk 0:00:02]}  Kf8 {[%clk 0:00:04]} 70. Rc7 {[%clk 0:00:03]}  Kg8 {[%clk 0:00:04]} 71. Rb7 {[%clk 0:00:02]}  Kf8 {[%clk 0:00:05]} 72. Rb8+ {[%clk 0:00:03]}  Kg7 {[%clk 0:00:05]} 73. f6+ {[%clk 0:00:03]}  Kg6 {[%clk 0:00:04]} 74. Rg8+ {[%clk 0:00:04]}  Kf5 {[%clk 0:00:04]} 75. Rg7 {[%clk 0:00:05]}  Ke6 {[%clk 0:00:04]} 76. Kf3 {[%clk 0:00:04]}  Rb4 {[%clk 0:00:04]} 77. Ke3 {[%clk 0:00:04]}  Ra4 {[%clk 0:00:04]} 78. Kf3 {[%clk 0:00:03]}  Rb4 {[%clk 0:00:05]} 79. Ke3 {[%clk 0:00:03]}  Ra4 {[%clk 0:00:05]} 80. Kf3 {[%clk 0:00:04]} 1/2-1/2


[Site "https://www.chess.com"]

[Event "Titled Tuesday Blitz December 20 Late 2022"]
[White "Ferreira, Vitor Hugo Vieira"]
[Black "Vlassov, Nikolai"]
[WhiteFideId "2119765"]
[BlackFideId "4103360"]
[WhiteElo "2146"]
[BlackElo "2324"]
[Result "0-1"]
[Round "08"]
[TimeControl "180+1"]
[Date "2022.12.21"]
[WhiteClock "0:00:06"]
[BlackClock "0:00:19"]

1. e4 {[%clk 0:03:00]}  Nc6 {[%clk 0:02:59]} 2. d4 {[%clk 0:03:00]}  d5 {[%clk 0:02:58]} 3. exd5 {[%clk 0:03:00]}  Qxd5 {[%clk 0:02:57]} 4. Nf3 {[%clk 0:03:00]}  Bg4 {[%clk 0:02:56]} 5. Be2 {[%clk 0:03:00]}  O-O-O {[%clk 0:02:55]} 6. c4 {[%clk 0:02:58]}  Qh5 {[%clk 0:02:54]} 7. d5 {[%clk 0:02:52]}  e6 {[%clk 0:02:54]} 8. Nc3 {[%clk 0:02:52]}  Nf6 {[%clk 0:02:51]} 9. Qb3 {[%clk 0:02:45]}  exd5 {[%clk 0:02:48]} 10. cxd5 {[%clk 0:02:43]}  Nxd5 {[%clk 0:02:48]} 11. Nxd5 {[%clk 0:02:42]}  Qxd5 {[%clk 0:02:46]} 12. Qxd5 {[%clk 0:02:40]}  Rxd5 {[%clk 0:02:44]} 13. O-O {[%clk 0:02:40]}  Bc5 {[%clk 0:02:42]} 14. Bc4 {[%clk 0:02:39]}  Bxf3 {[%clk 0:02:38]} 15. gxf3 {[%clk 0:02:36]}  Rf5 {[%clk 0:02:35]} 16. Kg2 {[%clk 0:02:32]}  Rd8 {[%clk 0:02:31]} 17. a3 {[%clk 0:02:30]}  Rd6 {[%clk 0:02:30]} 18. b4 {[%clk 0:02:30]}  Rg6+ {[%clk 0:02:29]} 19. Kh1 {[%clk 0:02:29]}  Bd4 {[%clk 0:02:27]} 20. Bd3 {[%clk 0:02:26]}  Rxf3 {[%clk 0:02:24]} 21. Bxg6 {[%clk 0:02:24]}  Bxa1 {[%clk 0:02:21]} 22. Be4 {[%clk 0:02:24]}  Rc3 {[%clk 0:02:04]} 23. Bd2 {[%clk 0:02:20]}  Rxa3 {[%clk 0:02:03]} 24. Bxh7 {[%clk 0:02:01]}  g6 {[%clk 0:01:55]} 25. Bg8 {[%clk 0:01:58]}  Ne5 {[%clk 0:01:38]} 26. f4 {[%clk 0:01:49]}  Nc4 {[%clk 0:01:31]} 27. Bc1 {[%clk 0:01:49]}  Ra4 {[%clk 0:01:09]} 28. Bxf7 {[%clk 0:01:43]}  Rxb4 {[%clk 0:01:08]} 29. Bxg6 {[%clk 0:01:40]}  Bf6 {[%clk 0:01:07]} 30. Bf5+ {[%clk 0:01:30]}  Kb8 {[%clk 0:01:04]} 31. Bd3 {[%clk 0:01:17]}  a5 {[%clk 0:01:02]} 32. Rg1 {[%clk 0:01:07]}  a4 {[%clk 0:01:01]} 33. Rg6 {[%clk 0:01:04]}  Bb2 {[%clk 0:00:40]} 34. Rg8+ {[%clk 0:00:14]}  Ka7 {[%clk 0:00:40]} 35. Bxc4 {[%clk 0:00:13]}  Bxc1 {[%clk 0:00:38]} 36. Bd3 {[%clk 0:00:10]}  Bxf4 {[%clk 0:00:37]} 37. Rg2 {[%clk 0:00:06]}  Rd4 {[%clk 0:00:29]} 38. Bb5 {[%clk 0:00:04]}  Rd1+ {[%clk 0:00:21]} 39. Rg1 {[%clk 0:00:05]}  Rxg1+ {[%clk 0:00:20]} 40. Kxg1 {[%clk 0:00:05]}  a3 {[%clk 0:00:20]} 41. Bc4 {[%clk 0:00:06]}  b5 {[%clk 0:00:21]} 42. Bb3 {[%clk 0:00:05]}  c5 {[%clk 0:00:20]} 43. h4 {[%clk 0:00:06]}  c4 {[%clk 0:00:19]} 44. Ba2 {[%clk 0:00:05]}  Kb6 {[%clk 0:00:19]} 45. Kf2 {[%clk 0:00:05]}  Kc5 {[%clk 0:00:20]} 46. Ke2 {[%clk 0:00:06]}  b4 {[%clk 0:00:20]} 47. Kd1 {[%clk 0:00:06]}  b3 {[%clk 0:00:20]} 48. Bb1 {[%clk 0:00:05]}  a2 {[%clk 0:00:20]} 49. Bxa2 {[%clk 0:00:06]}  bxa2 {[%clk 0:00:20]} 50. Kc2 {[%clk 0:00:06]}  a1=Q {[%clk 0:00:20]} 51. h5 {[%clk 0:00:06]}  Kd4 {[%clk 0:00:19]} 0-1


[Site "https://www.chess.com"]

[Event "Titled Tuesday Blitz December 20 Late 2022"]
[White "Fiorito, Francisco"]
[Black "Tristan, Leonardo"]
[WhiteFideId "180165"]
[BlackFideId "113816"]
[WhiteElo "2348"]
[BlackElo "2461"]
[Result "1-0"]
[Round "08"]
[TimeControl "180+1"]
[Date "2022.12.21"]
[WhiteClock "0:00:09"]
[BlackClock "0:00:01"]

1. Nf3 {[%clk 0:03:00]}  d5 {[%clk 0:03:00]} 2. g3 {[%clk 0:03:01]}  Nf6 {[%clk 0:03:00]} 3. Bg2 {[%clk 0:03:01]}  Bf5 {[%clk 0:03:00]} 4. O-O {[%clk 0:03:01]}  e6 {[%clk 0:03:01]} 5. c4 {[%clk 0:02:57]}  c6 {[%clk 0:03:01]} 6. d3 {[%clk 0:02:57]}  dxc4 {[%clk 0:02:59]} 7. dxc4 {[%clk 0:02:57]}  Nbd7 {[%clk 0:02:57]} 8. Nc3 {[%clk 0:02:56]}  Qc7 {[%clk 0:02:56]} 9. Bf4 {[%clk 0:02:53]}  e5 {[%clk 0:02:56]} 10. Bg5 {[%clk 0:02:51]}  h6 {[%clk 0:02:56]} 11. Bd2 {[%clk 0:02:49]}  Bc5 {[%clk 0:02:52]} 12. Qb3 {[%clk 0:02:45]}  O-O {[%clk 0:02:51]} 13. Rad1 {[%clk 0:02:41]}  Rfe8 {[%clk 0:02:51]} 14. Na4 {[%clk 0:02:33]}  Bf8 {[%clk 0:02:50]} 15. Bb4 {[%clk 0:02:28]}  c5 {[%clk 0:02:42]} 16. Ba3 {[%clk 0:02:25]}  e4 {[%clk 0:02:38]} 17. Ne1 {[%clk 0:02:03]}  Ne5 {[%clk 0:02:33]} 18. Nc3 {[%clk 0:01:56]}  Nc6 {[%clk 0:02:32]} 19. Nc2 {[%clk 0:01:53]}  a6 {[%clk 0:02:11]} 20. Nd5 {[%clk 0:01:48]}  Nxd5 {[%clk 0:02:11]} 21. cxd5 {[%clk 0:01:49]}  Na5 {[%clk 0:02:12]} 22. Qc3 {[%clk 0:01:47]}  b5 {[%clk 0:02:08]} 23. Ne3 {[%clk 0:01:42]}  Bh7 {[%clk 0:01:54]} 24. b4 {[%clk 0:01:41]}  Nc4 {[%clk 0:01:55]} 25. Nxc4 {[%clk 0:01:35]}  cxb4 {[%clk 0:01:55]} 26. Bxb4 {[%clk 0:01:34]}  Bxb4 {[%clk 0:01:31]} 27. Qxb4 {[%clk 0:01:32]}  Qxc4 {[%clk 0:01:31]} 28. Qxc4 {[%clk 0:01:28]}  bxc4 {[%clk 0:01:32]} 29. Rd4 {[%clk 0:01:24]}  Rac8 {[%clk 0:01:32]} 30. Rc1 {[%clk 0:01:22]}  c3 {[%clk 0:01:31]} 31. e3 {[%clk 0:01:17]}  Red8 {[%clk 0:01:26]} 32. Bf1 {[%clk 0:01:16]}  a5 {[%clk 0:01:17]} 33. Bb5 {[%clk 0:01:08]}  Rc5 {[%clk 0:01:17]} 34. Bc6 {[%clk 0:01:08]}  Kf8 {[%clk 0:01:12]} 35. Rc2 {[%clk 0:01:01]}  f5 {[%clk 0:01:10]} 36. Ra4 {[%clk 0:00:59]}  Bg8 {[%clk 0:01:10]} 37. Ra3 {[%clk 0:00:52]}  Bxd5 {[%clk 0:00:34]} 38. Bxd5 {[%clk 0:00:51]}  Rcxd5 {[%clk 0:00:34]} 39. Raxc3 {[%clk 0:00:51]}  Kf7 {[%clk 0:00:35]} 40. Rc7+ {[%clk 0:00:50]}  Kf6 {[%clk 0:00:35]} 41. R2c6+ {[%clk 0:00:47]}  R8d6 {[%clk 0:00:36]} 42. Rxd6+ {[%clk 0:00:42]}  Rxd6 {[%clk 0:00:36]} 43. Rc5 {[%clk 0:00:42]}  Ra6 {[%clk 0:00:34]} 44. a4 {[%clk 0:00:43]}  g6 {[%clk 0:00:31]} 45. h3 {[%clk 0:00:40]}  g5 {[%clk 0:00:22]} 46. g4 {[%clk 0:00:38]}  f4 {[%clk 0:00:17]} 47. exf4 {[%clk 0:00:37]}  gxf4 {[%clk 0:00:18]} 48. Rf5+ {[%clk 0:00:37]}  Ke6 {[%clk 0:00:17]} 49. Rxf4 {[%clk 0:00:37]}  Ke5 {[%clk 0:00:18]} 50. Rf5+ {[%clk 0:00:33]}  Kd4 {[%clk 0:00:19]} 51. h4 {[%clk 0:00:34]}  Kc4 {[%clk 0:00:12]} 52. Kg2 {[%clk 0:00:28]}  Kb4 {[%clk 0:00:13]} 53. Re5 {[%clk 0:00:28]}  Kxa4 {[%clk 0:00:13]} 54. Rxe4+ {[%clk 0:00:29]}  Kb5 {[%clk 0:00:12]} 55. f4 {[%clk 0:00:17]}  a4 {[%clk 0:00:12]} 56. Re2 {[%clk 0:00:13]}  a3 {[%clk 0:00:12]} 57. Ra2 {[%clk 0:00:13]}  Kc4 {[%clk 0:00:13]} 58. g5 {[%clk 0:00:14]}  h5 {[%clk 0:00:13]} 59. Kf3 {[%clk 0:00:13]}  Kb3 {[%clk 0:00:12]} 60. Re2 {[%clk 0:00:13]}  Rc6 {[%clk 0:00:11]} 61. Re8 {[%clk 0:00:10]}  Rc3+ {[%clk 0:00:09]} 62. Ke4 {[%clk 0:00:09]}  Rc4+ {[%clk 0:00:10]} 63. Kf5 {[%clk 0:00:09]}  a2 {[%clk 0:00:10]} 64. Re1 {[%clk 0:00:08]}  Kb2 {[%clk 0:00:09]} 65. g6 {[%clk 0:00:09]}  Rc1 {[%clk 0:00:05]} 66. Rxc1 {[%clk 0:00:09]}  Kxc1 {[%clk 0:00:06]} 67. g7 {[%clk 0:00:10]}  a1=Q {[%clk 0:00:07]} 68. g8=Q {[%clk 0:00:10]}  Qa5+ {[%clk 0:00:07]} 69. Kg6 {[%clk 0:00:10]}  Qc5 {[%clk 0:00:05]} 70. Qf7 {[%clk 0:00:09]}  Qg1+ {[%clk 0:00:04]} 71. Kxh5 {[%clk 0:00:09]}  Kd2 {[%clk 0:00:05]} 72. Qe6 {[%clk 0:00:08]}  Kd3 {[%clk 0:00:05]} 73. f5 {[%clk 0:00:09]}  Qg7 {[%clk 0:00:04]} 74. Qg6 {[%clk 0:00:08]}  Qh8+ {[%clk 0:00:04]} 75. Kg5 {[%clk 0:00:08]}  Ke4 {[%clk 0:00:04]} 76. f6+ {[%clk 0:00:08]}  Ke5 {[%clk 0:00:01]} 77. Qg7 {[%clk 0:00:09]}  Qd8 {[%clk 0:00:01]} 78. Qe7+ {[%clk 0:00:09]} 1-0


[Site "https://www.chess.com"]

[Event "Titled Tuesday Blitz December 20 Late 2022"]
[White "Flynn, Jacob"]
[Black "Nasir, Zehn"]
[WhiteFideId "2509393"]
[BlackFideId "2613239"]
[WhiteElo "2053"]
[BlackElo "1993"]
[Result "0-1"]
[Round "08"]
[TimeControl "180+1"]
[Date "2022.12.21"]
[WhiteClock "0:01:03"]
[BlackClock "0:00:50"]

1. d4 {[%clk 0:03:00]}  Nf6 {[%clk 0:03:00]} 2. c4 {[%clk 0:03:01]}  e6 {[%clk 0:03:00]} 3. g3 {[%clk 0:03:01]}  c5 {[%clk 0:03:00]} 4. d5 {[%clk 0:03:00]}  exd5 {[%clk 0:03:01]} 5. cxd5 {[%clk 0:03:01]}  d6 {[%clk 0:03:02]} 6. Bg2 {[%clk 0:03:02]}  g6 {[%clk 0:03:03]} 7. Nc3 {[%clk 0:03:02]}  Bg7 {[%clk 0:03:03]} 8. Nf3 {[%clk 0:03:03]}  O-O {[%clk 0:03:04]} 9. O-O {[%clk 0:03:04]}  Re8 {[%clk 0:03:04]} 10. Nd2 {[%clk 0:02:53]}  a6 {[%clk 0:03:04]} 11. a4 {[%clk 0:02:52]}  Nbd7 {[%clk 0:03:04]} 12. Nc4 {[%clk 0:02:52]}  Ne5 {[%clk 0:03:05]} 13. Na3 {[%clk 0:02:53]}  Rb8 {[%clk 0:02:59]} 14. h3 {[%clk 0:02:52]}  Nh5 {[%clk 0:02:59]} 15. e4 {[%clk 0:02:48]}  Bd7 {[%clk 0:02:54]} 16. Qe2 {[%clk 0:02:36]}  f5 {[%clk 0:02:36]} 17. exf5 {[%clk 0:02:32]}  Bxf5 {[%clk 0:02:32]} 18. Rd1 {[%clk 0:02:22]}  Nd3 {[%clk 0:02:13]} 19. Qd2 {[%clk 0:02:17]}  Bd4 {[%clk 0:02:02]} 20. g4 {[%clk 0:02:07]}  Bxf2+ {[%clk 0:01:51]} 21. Kh2 {[%clk 0:01:45]}  Qh4 {[%clk 0:01:21]} 22. gxf5 {[%clk 0:01:39]}  Qg3+ {[%clk 0:01:20]} 23. Kh1 {[%clk 0:01:39]}  Nhf4 {[%clk 0:00:51]} 24. Rg1 {[%clk 0:01:03]}  Bxg1 {[%clk 0:00:50]} 0-1


[Site "https://www.chess.com"]

[Event "Titled Tuesday Blitz December 20 Late 2022"]
[White "Forgacs, Attila Jr."]
[Black "Goncalves, Davi Sulzbacher"]
[WhiteFideId "773654"]
[BlackFideId "2154510"]
[WhiteElo "2168"]
[BlackElo "2182"]
[Result "1-0"]
[Round "08"]
[TimeControl "180+1"]
[Date "2022.12.21"]
[WhiteClock "0:00:28"]
[BlackClock "0:00:10"]

1. e4 {[%clk 0:03:00]}  e5 {[%clk 0:02:57]} 2. Nf3 {[%clk 0:03:00]}  Nc6 {[%clk 0:02:57]} 3. Bb5 {[%clk 0:03:01]}  Nf6 {[%clk 0:02:57]} 4. d3 {[%clk 0:03:01]}  Bd6 {[%clk 0:02:56]} 5. O-O {[%clk 0:02:58]}  Ne7 {[%clk 0:02:54]} 6. d4 {[%clk 0:02:51]}  Nxe4 {[%clk 0:02:30]} 7. dxe5 {[%clk 0:02:45]}  Bc5 {[%clk 0:02:30]} 8. Bd3 {[%clk 0:02:41]}  d5 {[%clk 0:02:28]} 9. Bxe4 {[%clk 0:02:26]}  dxe4 {[%clk 0:02:24]} 10. Qxd8+ {[%clk 0:02:27]}  Kxd8 {[%clk 0:02:25]} 11. Ng5 {[%clk 0:02:28]}  Be6 {[%clk 0:02:23]} 12. Nxe4 {[%clk 0:02:27]}  Bb6 {[%clk 0:02:19]} 13. Nbc3 {[%clk 0:02:26]}  h6 {[%clk 0:02:01]} 14. Na4 {[%clk 0:02:20]}  Nc6 {[%clk 0:01:52]} 15. Nxb6 {[%clk 0:02:19]}  axb6 {[%clk 0:01:53]} 16. f4 {[%clk 0:02:19]}  Bf5 {[%clk 0:01:48]} 17. Nc3 {[%clk 0:02:00]}  Nb4 {[%clk 0:00:56]} 18. Be3 {[%clk 0:01:59]}  Nxc2 {[%clk 0:00:54]} 19. Rad1+ {[%clk 0:02:00]}  Kc8 {[%clk 0:00:54]} 20. Bf2 {[%clk 0:01:57]}  Nb4 {[%clk 0:00:52]} 21. a3 {[%clk 0:01:55]}  Nd3 {[%clk 0:00:49]} 22. Nd5 {[%clk 0:01:55]}  Re8 {[%clk 0:00:38]} 23. h3 {[%clk 0:01:34]}  Be4 {[%clk 0:00:26]} 24. Nc3 {[%clk 0:01:30]}  Nxf2 {[%clk 0:00:26]} 25. Rxf2 {[%clk 0:01:29]}  Bc6 {[%clk 0:00:24]} 26. g4 {[%clk 0:01:25]}  Ra5 {[%clk 0:00:23]} 27. Rfd2 {[%clk 0:01:18]}  Rc5 {[%clk 0:00:21]} 28. Kf2 {[%clk 0:01:17]}  Rc4 {[%clk 0:00:20]} 29. Rd4 {[%clk 0:01:15]}  Rxd4 {[%clk 0:00:16]} 30. Rxd4 {[%clk 0:01:16]}  g6 {[%clk 0:00:13]} 31. Ke3 {[%clk 0:01:10]}  Bd7 {[%clk 0:00:13]} 32. Nd5 {[%clk 0:01:07]}  Be6 {[%clk 0:00:13]} 33. Nf6 {[%clk 0:01:05]}  Rh8 {[%clk 0:00:13]} 34. Ke4 {[%clk 0:01:00]}  c5 {[%clk 0:00:12]} 35. Rd6 {[%clk 0:00:56]}  Ba2 {[%clk 0:00:12]} 36. Nd5 {[%clk 0:00:47]}  Bb1+ {[%clk 0:00:10]} 37. Ke3 {[%clk 0:00:46]}  b5 {[%clk 0:00:11]} 38. Nc3 {[%clk 0:00:39]}  Bc2 {[%clk 0:00:11]} 39. Nxb5 {[%clk 0:00:39]}  b6 {[%clk 0:00:12]} 40. Rxb6 {[%clk 0:00:36]}  Kd7 {[%clk 0:00:12]} 41. Rd6+ {[%clk 0:00:36]}  Ke7 {[%clk 0:00:12]} 42. Nc7 {[%clk 0:00:35]}  Rb8 {[%clk 0:00:12]} 43. Nd5+ {[%clk 0:00:32]}  Kf8 {[%clk 0:00:12]} 44. Nf6 {[%clk 0:00:30]}  h5 {[%clk 0:00:10]} 45. g5 {[%clk 0:00:28]}  Rb3+ {[%clk 0:00:10]} 46. Kd2 {[%clk 0:00:28]} 1-0


[Site "https://www.chess.com"]

[Event "Titled Tuesday Blitz December 20 Late 2022"]
[White "Han, Yichen"]
[Black "Zhukov, Maksim"]
[WhiteFideId "1054430"]
[BlackFideId "34181790"]
[WhiteElo "2323"]
[BlackElo "1929"]
[Result "1-0"]
[Round "08"]
[TimeControl "180+1"]
[Date "2022.12.21"]
[WhiteClock "0:00:05"]
[BlackClock "0:00:31"]

1. d4 {[%clk 0:03:00]}  Nf6 {[%clk 0:02:59]} 2. Nf3 {[%clk 0:03:00]}  g6 {[%clk 0:03:00]} 3. c4 {[%clk 0:03:00]}  Bg7 {[%clk 0:03:00]} 4. Nc3 {[%clk 0:03:01]}  O-O {[%clk 0:03:01]} 5. e4 {[%clk 0:03:01]}  d6 {[%clk 0:03:01]} 6. Be2 {[%clk 0:03:01]}  e5 {[%clk 0:03:02]} 7. O-O {[%clk 0:03:02]}  exd4 {[%clk 0:03:02]} 8. Nxd4 {[%clk 0:03:01]}  Re8 {[%clk 0:03:03]} 9. f3 {[%clk 0:02:54]}  Nc6 {[%clk 0:03:03]} 10. Be3 {[%clk 0:02:52]}  Nh5 {[%clk 0:03:03]} 11. g3 {[%clk 0:02:42]}  f5 {[%clk 0:02:59]} 12. Nxc6 {[%clk 0:02:42]}  bxc6 {[%clk 0:02:59]} 13. Bd4 {[%clk 0:02:42]}  Nf6 {[%clk 0:02:58]} 14. Bd3 {[%clk 0:02:13]}  c5 {[%clk 0:02:57]} 15. Be3 {[%clk 0:02:08]}  fxe4 {[%clk 0:02:55]} 16. Nxe4 {[%clk 0:02:09]}  Nxe4 {[%clk 0:02:55]} 17. Bxe4 {[%clk 0:02:10]}  Rb8 {[%clk 0:02:54]} 18. Rb1 {[%clk 0:02:08]}  Bf5 {[%clk 0:02:51]} 19. Bxf5 {[%clk 0:01:58]}  Rxe3 {[%clk 0:02:50]} 20. Be4 {[%clk 0:01:53]}  Bd4 {[%clk 0:02:49]} 21. Kg2 {[%clk 0:01:53]}  Rxb2+ {[%clk 0:02:38]} 22. Rxb2 {[%clk 0:01:52]}  Bxb2 {[%clk 0:02:38]} 23. Qd5+ {[%clk 0:01:53]}  Kg7 {[%clk 0:02:36]} 24. Rb1 {[%clk 0:01:52]}  Qf6 {[%clk 0:02:29]} 25. Qd2 {[%clk 0:01:44]}  Qd4 {[%clk 0:02:24]} 26. Qxb2 {[%clk 0:01:36]}  Rc3 {[%clk 0:02:19]} 27. Qf2 {[%clk 0:01:31]}  Qxc4 {[%clk 0:02:14]} 28. Rb7 {[%clk 0:01:28]}  d5 {[%clk 0:01:49]} 29. Rxc7+ {[%clk 0:01:27]}  Kf6 {[%clk 0:01:48]} 30. Qd2 {[%clk 0:00:37]}  dxe4 {[%clk 0:01:15]} 31. Qf4+ {[%clk 0:00:36]}  Ke6 {[%clk 0:01:16]} 32. Qf7+ {[%clk 0:00:24]}  Ke5 {[%clk 0:01:15]} 33. Qf4+ {[%clk 0:00:15]}  Ke6 {[%clk 0:00:43]} 34. Rc6+ {[%clk 0:00:15]}  Ke7 {[%clk 0:00:41]} 35. Qd6+ {[%clk 0:00:09]}  Kf7 {[%clk 0:00:35]} 36. Qf6+ {[%clk 0:00:09]}  Ke8 {[%clk 0:00:32]} 37. Rc8+ {[%clk 0:00:05]}  Kd7 {[%clk 0:00:32]} 38. Rd8+ {[%clk 0:00:03]}  Kc7 {[%clk 0:00:32]} 39. Qd6+ {[%clk 0:00:04]}  Kb7 {[%clk 0:00:31]} 40. Rb8# {[%clk 0:00:05]} 1-0


[Site "https://www.chess.com"]